bitfinex/quotes_BTCUSD_20220202
["timestamp","ask_amount","ask_price","bid_price","bid_amount"]
[1643826903993,0.3027434,37466.0,37463.0,0.05728645]
[1643826904793,0.00023347,37465.0,37463.0,0.05728645]
[1643826905637,0.23632597,37475.0,37465.0,1.6]
[1643826905838,0.20022,37490.0,37469.0,0.166721]
[1643826905839,0.33936171,37487.0,37469.0,0.166721]
[1643826906140,0.544,37489.0,37472.0,0.1]
[1643826906333,2.99369074,37491.0,37473.0,0.31894872]
[1643826906334,2.53982903,37491.0,37473.0,0.31894872]
[1643826906536,0.23863707,37484.0,37483.0,0.08046649]
[1643826906737,0.23863707,37484.0,37483.0,0.05]
[1643826907334,0.05,37485.0,37483.0,0.05]
[1643826907536,0.05,37485.0,37483.0,0.116703]
[1643826907742,0.05,37485.0,37483.0,0.350101]
[1643826907934,2.53982903,37491.0,37484.0,1.77102894]
[1643826908136,2.53982903,37491.0,37486.0,0.06668903]
[1643826908334,0.30605236,37490.0,37486.0,0.32101557]
[1643826908633,0.30605236,37490.0,37489.0,0.20391693]
[1643826908900,1.00605236,37490.0,37489.0,0.30731693]
[1643826909901,1.00605236,37490.0,37489.0,0.1034]
[1643826910908,2.26002536,37490.0,37489.0,0.1034]
[1643826911204,2.26002536,37490.0,37483.0,0.05]
[1643826911205,0.20472277,37487.0,37483.0,0.05]
[1643826911407,0.55444214,37486.0,37485.0,0.0534]
[1643826911606,0.57550674,37486.0,37483.0,0.05]
[1643826911806,1.29879281,37484.0,37483.0,0.05]
[1643826912007,1.65276581,37484.0,37483.0,0.05]
[1643826912208,1.89977357,37484.0,37483.0,0.05]
[1643826912403,0.84977357,37484.0,37483.0,0.05015899]
[1643826912640,0.84977357,37484.0,37483.0,0.00015899]
[1643826912641,0.93074847,37484.0,37483.0,0.00015899]
[1643826912838,1.88074847,37484.0,37483.0,0.00015899]
[1643826913437,1.88074847,37484.0,37481.0,0.05]
[1643826913637,1.553973,37483.0,37482.0,0.00052858]
[1643826914638,1.553973,37483.0,37481.0,0.05]
[1643826914843,0.353973,37482.0,37481.0,0.05015858]
[1643826915039,0.353973,37483.0,37481.0,0.05015858]
[1643826915842,0.24899955,37484.0,37481.0,0.05]
[1643826916689,0.24899955,37484.0,37481.0,0.1]
[1643826917088,0.24899955,37484.0,37481.0,0.10016419]
[1643826917289,0.00020674,37484.0,37481.0,0.10016419]
[1643826917494,0.00020674,37484.0,37482.0,0.13341]
[1643826917689,0.00020674,37484.0,37482.0,0.18341]
[1643826917891,0.00020674,37484.0,37483.0,0.25051219]
[1643826918193,0.00020674,37484.0,37483.0,0.30051219]
[1643826919390,0.00020674,37484.0,37483.0,0.43390419]
[1643826920056,0.05021517,37486.0,37483.0,0.30051219]
[1643826920352,0.05021517,37486.0,37482.0,0.05055013]
[1643826920552,0.13017251,37486.0,37482.0,0.05]
[1643826920751,0.13017251,37486.0,37483.0,0.00055012]
[1643826921753,0.13017251,37486.0,37482.0,0.05]
[1643826921953,0.05021517,37486.0,37482.0,0.05]
[1643826922153,0.05021517,37486.0,37483.0,0.00055012]
[1643826922560,0.05021517,37486.0,37483.0,0.06724912]
[1643826922755,0.05021517,37486.0,37483.0,0.00055012]
[1643826922956,0.05021517,37486.0,37482.0,0.1]
[1643826923355,0.05021517,37486.0,37483.0,0.00048636]
[1643826923557,0.353973,37485.0,37483.0,0.00048636]
[1643826924185,0.05021517,37486.0,37482.0,0.29214934]
[1643826924486,0.1475241,37486.0,37482.0,0.00048636]
[1643826925286,0.05021517,37486.0,37482.0,0.00048636]
[1643826926685,0.05021517,37486.0,37483.0,0.28127984]
[1643826927088,0.05021517,37486.0,37484.0,0.120097]
[1643826927292,0.05021517,37486.0,37485.0,1.453973]
[1643826927531,0.05021517,37486.0,37485.0,1.557373]
[1643826927736,0.05021517,37486.0,37485.0,1.707373]
[1643826927931,0.05021517,37486.0,37485.0,0.607373]
[1643826928736,0.05021517,37486.0,37485.0,0.957373]
[1643826929534,0.00021517,37486.0,37485.0,0.957373]
[1643826932191,0.00021517,37486.0,37485.0,1.05211483]
[1643826932994,0.00021517,37486.0,37485.0,0.957373]
[1643826933793,0.00021517,37486.0,37485.0,0.607373]
[1643826934295,0.00021517,37486.0,37485.0,0.67405995]
[1643826935937,0.00021517,37486.0,37485.0,0.47405995]
[1643826936236,0.00021517,37486.0,37485.0,0.12008695]
[1643826936552,0.00021517,37486.0,37485.0,0.06668695]
[1643826937141,0.00021517,37486.0,37484.0,0.18393224]
[1643826937537,0.00021517,37486.0,37484.0,0.233392]
[1643826937738,0.00021517,37486.0,37484.0,0.23388223]
[1643826938438,0.00021517,37486.0,37485.0,0.06669315]
[1643826938636,0.00021517,37486.0,37485.0,0.11669315]
[1643826941289,0.2046167,37487.0,37485.0,0.11669315]
[1643826941692,0.2046167,37487.0,37484.0,0.00017646]
[1643826942094,0.17671477,37486.0,37484.0,0.00017646]
[1643826942292,0.17671477,37486.0,37482.0,0.66304086]
[1643826942743,0.17671477,37486.0,37484.0,0.00017633]
[1643826943139,1.753973,37485.0,37484.0,0.00017633]
[1643826943638,1.753973,37485.0,37482.0,0.66304086]
[1643826943639,2.003973,37485.0,37482.0,0.66304086]
[1643826943838,2.003973,37484.0,37483.0,0.00058777]
[1643826944639,2.003973,37484.0,37482.0,0.66304086]
[1643826944840,0.353973,37483.0,37482.0,0.66304086]
[1643826947899,0.00019329,37485.0,37482.0,0.66304086]
[1643826948097,0.353973,37484.0,37482.0,0.66304086]
[1643826948499,0.353973,37484.0,37482.0,0.6635846]
[1643826949496,0.353973,37484.0,37482.0,0.66304086]
[1643826949897,0.00019365,37483.0,37482.0,0.66304086]
[1643826950138,0.00019365,37483.0,37481.0,0.05]
[1643826950338,0.353973,37482.0,37481.0,0.05]
[1643826950536,0.00019365,37483.0,37478.0,0.05]
[1643826950738,0.00019365,37483.0,37478.0,0.07071222]
[1643826951342,0.00019365,37483.0,37478.0,0.13742022]
[1643826951541,0.05019365,37483.0,37478.0,0.18742022]
[1643826951739,0.05019365,37483.0,37478.0,0.166708]
[1643826953241,0.05019365,37483.0,37479.0,0.00058326]
[1643826953446,0.06670885,37482.0,37479.0,0.00058326]
[1643826954137,0.353973,37481.0,37479.0,0.00058326]
[1643826954344,0.353973,37481.0,37478.0,0.05]
[1643826954740,0.353973,37481.0,37479.0,0.00058326]
[1643826955537,0.2482639,37480.0,37478.0,0.05]
[1643826955737,0.2482639,37480.0,37478.0,0.05058327]
[1643826955738,0.31497907,37480.0,37478.0,0.05058327]
[1643826956839,0.31497907,37480.0,37478.0,0.05]
[1643826957544,1.8178446,37479.0,37478.0,0.05]
[1643826957746,2.2218176,37479.0,37478.0,0.05]
[1643826957944,2.2718176,37479.0,37478.0,0.05]
[1643826958142,2.4252176,37479.0,37478.0,0.05]
[1643826958347,2.71457931,37479.0,37478.0,0.05]
[1643826958541,1.78347717,37478.0,37477.0,0.00050128]
[1643826958740,2.68007659,37478.0,37477.0,0.00050128]
[1643826958941,2.9461431,37478.0,37477.0,0.00050128]
[1643826959144,3.0961431,37478.0,37477.0,0.00050128]
[1643826959342,0.05,37477.0,37471.0,0.66304086]
[1643826959548,0.40023904,37473.0,37472.0,0.05]
[1643826959746,0.05,37470.0,37463.0,0.00200586]
[1643826959943,0.56783534,37469.0,37463.0,0.00200586]
[1643826960144,0.457373,37468.0,37463.0,0.00200586]
[1643826960342,0.23255388,37466.0,37463.0,0.00200586]
[1643826960540,0.7904,37478.0,37451.0,0.23163299]
[1643826960744,1.15544889,37483.0,37482.0,12.66787959]
[1643826960941,3.19390333,37483.0,37482.0,0.71799483]
[1643826961141,0.066761,37477.0,37463.0,0.14378626]
[1643826961401,0.066761,37477.0,37462.0,0.05]
[1643826961402,0.1,37470.0,37462.0,0.05]
[1643826961596,0.02548,37468.0,37462.0,0.05]
[1643826961799,0.1,37466.0,37451.0,0.01]
[1643826961996,0.39095834,37465.0,37459.0,0.27178882]
[1643826962195,0.454019,37464.0,37462.0,0.08650238]
[1643826962398,0.407419,37463.0,37462.0,0.08650238]
[1643826962596,0.65837452,37463.0,37462.0,0.08650238]
[1643826962996,0.0534,37463.0,37462.0,0.08650238]
[1643826963196,0.0534,37463.0,37462.0,0.93650238]
[1643826963895,0.0534,37463.0,37462.0,0.08650238]
[1643826964094,0.407419,37463.0,37462.0,0.08650238]
[1643826964298,0.407419,37463.0,37462.0,0.63650238]
[1643826964299,0.0534,37463.0,37462.0,0.63650238]
[1643826964697,0.0534,37463.0,37462.0,0.08650238]
[1643826964897,0.407419,37463.0,37462.0,0.08650238]
[1643826965140,0.40760412,37463.0,37462.0,0.08650238]
[1643826965333,0.40760412,37463.0,37462.0,0.68650238]
[1643826965534,0.05358512,37463.0,37462.0,0.68650238]
[1643826966134,0.05358512,37463.0,37462.0,0.73623738]
[1643826966938,0.00018512,37463.0,37462.0,0.73623738]
[1643826967135,0.00018512,37463.0,37462.0,0.08650238]
[1643826967935,0.00018512,37463.0,37462.0,0.13623738]
[1643826968137,0.00018512,37463.0,37462.0,0.43650238]
[1643826969191,0.00018512,37463.0,37462.0,0.08650238]
[1643826970191,0.05018512,37465.0,37462.0,0.08650238]
[1643826970403,0.354019,37464.0,37462.0,0.08650238]
[1643826970891,0.404019,37464.0,37462.0,0.08650238]
[1643826971091,0.354019,37463.0,37462.0,0.08650238]
[1643826972390,0.05,37464.0,37462.0,0.08650238]
[1643826973442,0.05,37464.0,37461.0,0.0504757]
[1643826973643,0.354019,37463.0,37461.0,0.0504757]
[1643826973843,0.354019,37463.0,37461.0,0.05055828]
[1643826974846,0.354019,37463.0,37461.0,0.05]
[1643826974847,0.404019,37463.0,37461.0,0.05]
[1643826975042,0.354019,37462.0,37461.0,0.05]
[1643826975243,0.05018512,37463.0,37461.0,0.05]
[1643826975445,0.05018512,37463.0,37461.0,0.13671124]
[1643826975643,0.00018512,37463.0,37461.0,0.13671124]
[1643826978104,0.354019,37462.0,37461.0,0.13671124]
[1643826978303,0.00018512,37463.0,37461.0,0.13671124]
[1643826978705,0.00018512,37463.0,37461.0,0.13259301]
[1643826979909,0.354019,37462.0,37461.0,0.13259301]
[1643826980541,0.354019,37462.0,37461.0,0.08671124]
[1643826980939,0.00018512,37463.0,37461.0,0.08671124]
[1643826981140,0.354019,37462.0,37461.0,0.08671124]
[1643826984090,0.00018512,37463.0,37461.0,0.08671124]
[1643826984388,0.00018512,37463.0,37461.0,0.13644624]
[1643826984389,0.354019,37462.0,37461.0,0.13644624]
[1643826984591,0.00018512,37463.0,37461.0,0.08671124]
[1643826985389,0.0001853,37462.0,37461.0,0.08671124]
[1643826985589,0.0001853,37462.0,37461.0,0.36441273]
[1643826985991,0.0001853,37462.0,37461.0,0.91441273]
[1643826986392,0.0001853,37462.0,37461.0,0.96414773]
[1643826987196,0.0001853,37462.0,37461.0,1.36816673]
[1643826987397,0.1246,37473.0,37470.0,0.29459356]
[1643826987653,0.1179,37481.0,37477.0,0.049735]
[1643826987859,0.28995404,37484.0,37477.0,0.049735]
[1643826988047,0.28995404,37484.0,37481.0,0.21973828]
[1643826988248,0.28995404,37484.0,37478.0,0.09562006]
[1643826988452,0.28995404,37484.0,37481.0,0.049735]
[1643826988651,0.28995404,37484.0,37479.0,0.31140234]
[1643826988849,0.28995404,37484.0,37479.0,0.31113734]
[1643826989250,0.28995404,37484.0,37479.0,0.049735]
[1643826989652,0.354019,37483.0,37481.0,0.22495329]
[1643826990250,0.28995404,37484.0,37481.0,0.22495329]
[1643826991050,0.354019,37483.0,37481.0,0.22495329]
[1643826991291,0.05,37485.0,37481.0,0.22495329]
[1643826991985,0.05,37485.0,37481.0,0.2255286]
[1643826992390,0.05,37485.0,37484.0,0.09508254]
[1643826992586,0.38979557,37485.0,37484.0,0.09508254]
[1643826993187,0.38979557,37485.0,37483.0,0.00057528]
[1643826993390,0.63284365,37484.0,37483.0,0.00057528]
[1643826993990,1.48284365,37484.0,37483.0,0.00036747]
[1643826994197,1.48284365,37484.0,37480.0,0.05]
[1643826994198,1.78773586,37484.0,37480.0,0.05]
[1643826994395,1.304019,37483.0,37482.0,0.00056525]
[1643826994591,1.363819,37483.0,37482.0,0.00056525]
[1643826995455,1.363819,37483.0,37480.0,0.05]
[1643826995660,0.63135312,37482.0,37480.0,0.05]
[1643826995854,1.37463365,37481.0,37480.0,0.05]
[1643826996255,1.42463365,37481.0,37480.0,0.05]
[1643826996956,1.37463365,37481.0,37480.0,0.05]
[1643826997955,0.62463365,37481.0,37480.0,0.05]
[1643826998360,0.62463365,37481.0,37479.0,0.00053025]
[1643826998555,0.354019,37480.0,37479.0,0.00053025]
[1643826998787,0.6098,37480.0,37479.0,0.00053025]
[1643826998990,1.22961181,37480.0,37475.0,0.0187485]
[1643826999289,0.354019,37479.0,37478.0,0.00053026]
[1643826999490,0.413819,37479.0,37478.0,0.00053026]
[1643827000088,0.413819,37479.0,37476.0,0.05]
[1643827000290,0.354019,37478.0,37476.0,0.05]
[1643827000492,0.354019,37478.0,37477.0,0.30053234]
[1643827001391,0.354019,37478.0,37477.0,0.3]
[1643827001991,0.353519,37478.0,37476.0,0.05053235]
[1643827002536,0.353519,37478.0,37476.0,0.05]
[1643827002739,0.353519,37478.0,37476.0,0.045]
[1643827004542,0.05016338,37481.0,37476.0,0.045]
[1643827004740,0.353965,37480.0,37478.0,0.26609791]
[1643827005139,0.353965,37480.0,37479.0,0.2463942]
[1643827005641,0.353965,37480.0,37478.0,0.26609791]
[1643827006044,0.353965,37480.0,37477.0,0.00053346]
[1643827006299,0.403965,37480.0,37476.0,0.045]
[1643827006497,0.353965,37479.0,37477.0,0.00053345]
[1643827006699,0.27382534,37478.0,37477.0,0.00053345]
[1643827006895,0.62779034,37478.0,37477.0,0.00053345]
[1643827007097,0.62217196,37478.0,37477.0,0.00053345]
[1643827007296,0.40364393,37478.0,37476.0,0.045]
[1643827007496,0.353965,37477.0,37476.0,0.0455561]
[1643827008297,0.353965,37477.0,37476.0,0.02599312]
[1643827008497,0.353965,37477.0,37476.0,0.02543702]
[1643827009900,0.353965,37477.0,37475.0,0.09471569]
[1643827010139,0.00016392,37478.0,37475.0,0.09471569]
[1643827010840,0.00016392,37478.0,37475.0,0.0005561]
[1643827011039,0.353965,37477.0,37474.0,0.05]
[1643827011245,0.403965,37477.0,37475.0,0.00046772]
[1643827011443,0.353965,37476.0,37475.0,0.00046772]
[1643827012039,0.353965,37476.0,37475.0,0.09851729]
[1643827012244,0.353965,37476.0,37475.0,0.09804957]
[1643827012441,0.353965,37476.0,37475.0,0.09795629]
[1643827013042,0.353965,37476.0,37474.0,0.05048512]
[1643827013442,0.353965,37476.0,37474.0,0.05]
[1643827013443,0.3552807,37476.0,37474.0,0.05]
[1643827013645,0.3552807,37476.0,37474.0,0.05048512]
[1643827013646,0.353965,37475.0,37474.0,0.05048512]
[1643827014490,0.353965,37475.0,37471.0,0.32650659]
[1643827014691,0.353965,37475.0,37473.0,0.00048514]
[1643827015290,0.00147997,37476.0,37473.0,0.26048514]
[1643827015489,0.00147997,37476.0,37473.0,0.00048514]
[1643827015692,0.00147997,37476.0,37472.0,0.05]
[1643827015891,0.00147997,37476.0,37473.0,0.00048514]
[1643827016889,0.00147997,37476.0,37472.0,0.05]
[1643827017389,0.00147997,37476.0,37473.0,0.00048259]
[1643827018246,0.00147997,37476.0,37472.0,0.05]
[1643827018446,0.00147997,37476.0,37473.0,0.00048259]
[1643827018648,0.35313222,37475.0,37473.0,0.00048259]
[1643827018847,0.26574204,37474.0,37473.0,0.00048259]
[1643827019051,0.61970704,37474.0,37473.0,0.00048259]
[1643827019445,0.61970704,37474.0,37472.0,0.05]
[1643827019446,0.353965,37474.0,37472.0,0.05]
[1643827019645,0.353965,37474.0,37472.0,0.05048261]
[1643827020444,0.353965,37474.0,37473.0,0.279735]
[1643827020645,0.00016445,37475.0,37473.0,0.279735]
[1643827020845,0.00016445,37475.0,37473.0,0.04554461]
[1643827022093,0.00016445,37475.0,37472.0,0.05048234]
[1643827022291,0.00016445,37475.0,37474.0,0.05]
[1643827022692,0.03015015,37477.0,37474.0,0.05]
[1643827022893,0.00882015,37477.0,37476.0,0.68219753]
[1643827023195,0.00882015,37477.0,37476.0,0.72774214]
[1643827023596,0.33893378,37483.0,37476.0,0.72774214]
[1643827023792,0.01984985,37479.0,37476.0,0.72774214]
[1643827023994,0.01984985,37479.0,37476.0,0.27774214]
[1643827024195,0.01984985,37479.0,37477.0,0.10314631]
[1643827024391,0.01984985,37479.0,37478.0,0.00014521]
[1643827024591,0.01984985,37479.0,37478.0,0.09568982]
[1643827024592,0.35249985,37479.0,37478.0,0.09568982]
[1643827024791,0.38265,37481.0,37478.0,0.09568982]
[1643827025039,0.353959,37480.0,37478.0,0.09568982]
[1643827025245,0.332629,37480.0,37478.0,0.09568982]
[1643827025441,0.316849,37480.0,37478.0,0.09554461]
[1643827025641,0.05,37481.0,37478.0,0.0960272]
[1643827025841,0.353957,37480.0,37478.0,0.0960272]
[1643827026645,0.353957,37480.0,37478.0,0.09554461]
[1643827026847,0.353957,37480.0,37478.0,0.04554461]
[1643827027847,0.05,37481.0,37478.0,0.04554461]
[1643827028046,0.05,37481.0,37477.0,0.20365151]
[1643827028447,0.353957,37480.0,37477.0,0.20365151]
[1643827028893,0.69289078,37480.0,37477.0,0.09557847]
[1643827029100,0.353957,37479.0,37477.0,0.0505052]
[1643827029294,0.69289078,37479.0,37477.0,0.0505052]
[1643827029496,0.353957,37478.0,37477.0,0.0505052]
[1643827029694,0.353957,37478.0,37477.0,0.0005052]
[1643827029894,0.69289078,37478.0,37477.0,0.0005052]
[1643827030194,0.69289078,37478.0,37472.0,0.49889073]
[1643827030397,0.33893378,37478.0,37476.0,0.00050522]
[1643827030597,0.353957,37477.0,37476.0,0.00050522]
[1643827031393,0.353957,37477.0,37475.0,0.07408899]
[1643827031594,0.353957,37477.0,37475.0,0.07456481]
[1643827031795,0.69289078,37477.0,37475.0,0.07456481]
[1643827032098,0.353957,37476.0,37475.0,0.07456481]
[1643827032296,0.33893378,37477.0,37475.0,0.07456481]
[1643827032542,0.353957,37476.0,37475.0,0.07408899]
[1643827033744,0.33893378,37477.0,37475.0,0.07408899]
[1643827034045,0.39233378,37477.0,37475.0,0.07408899]
[1643827034846,0.353957,37476.0,37475.0,0.07408899]
[1643827035044,0.35412674,37476.0,37475.0,0.07408899]
[1643827035245,0.00016974,37476.0,37475.0,0.07408899]
[1643827035448,0.00016974,37476.0,37475.0,0.6696336]
[1643827036795,0.00016974,37476.0,37475.0,0.62408899]
[1643827037199,0.00016974,37476.0,37475.0,0.6696336]
[1643827041352,0.00016974,37476.0,37475.0,0.62408899]
[1643827041543,0.00016974,37476.0,37475.0,0.7196336]
[1643827043143,0.33893378,37479.0,37475.0,0.7196336]
[1643827043144,0.33878236,37479.0,37475.0,0.7196336]
[1643827043344,0.33878236,37479.0,37476.0,1.05]
[1643827043543,0.33878236,37479.0,37478.0,0.29783387]
[1643827043792,0.05,37481.0,37478.0,0.29783387]
[1643827044192,0.05,37481.0,37479.0,0.2536647]
[1643827044392,0.05,37481.0,37480.0,0.09554461]
[1643827044991,0.39543294,37482.0,37480.0,0.09554461]
[1643827045194,0.39543294,37483.0,37480.0,0.09554461]
[1643827045391,0.39543294,37483.0,37480.0,0.05]
[1643827045592,0.353957,37482.0,37480.0,0.05]
[1643827045791,0.353957,37482.0,37481.0,0.04554461]
[1643827046194,0.353957,37482.0,37481.0,0.07697337]
[1643827046392,0.74938994,37482.0,37481.0,0.07697337]
[1643827046594,0.90777847,37482.0,37479.0,0.05]
[1643827046794,0.3959907,37480.0,37479.0,0.05]
[1643827046998,0.8033477,37480.0,37479.0,0.05]
[1643827047196,0.8033477,37480.0,37479.0,0.05058593]
[1643827047393,0.64955511,37480.0,37479.0,0.05058593]
[1643827047655,0.88062774,37480.0,37479.0,0.05058593]
[1643827047855,0.88062774,37480.0,37479.0,0.00058593]
[1643827048052,0.69955511,37480.0,37479.0,0.00058593]
[1643827048249,0.88062774,37480.0,37476.0,0.10041807]
[1643827048549,0.74996401,37479.0,37478.0,0.00058595]
[1643827048750,0.80336401,37479.0,37476.0,0.02178241]
[1643827048951,0.353957,37478.0,37476.0,0.02178241]
[1643827049150,0.0534,37477.0,37471.0,0.04554461]
[1643827049355,0.74996401,37476.0,37468.0,0.1156]
[1643827049557,0.39600701,37472.0,37466.0,0.9468]
[1643827049853,1.075057,37471.0,37464.0,0.3886]
[1643827050053,0.353957,37470.0,37464.0,0.3886]
[1643827050254,0.0534,37469.0,37465.0,0.09218856]
[1643827050454,0.353957,37468.0,37465.0,0.09218856]
[1643827050652,0.0534,37467.0,37465.0,0.09218856]
[1643827050854,0.353957,37466.0,37465.0,0.09218856]
[1643827051052,0.457357,37466.0,37465.0,0.09218856]
[1643827051288,0.7968498,37466.0,37465.0,0.09218856]
[1643827051488,1.07788857,37466.0,37465.0,0.09218856]
[1643827052091,0.73839577,37466.0,37465.0,0.09218856]
[1643827054493,0.68499577,37466.0,37465.0,0.09218856]
[1643827054892,0.403957,37466.0,37465.0,0.09218856]
[1643827055145,0.40413087,37466.0,37465.0,0.09218856]
[1643827055753,0.72588021,37466.0,37464.0,0.0505847]
[1643827055945,0.65222232,37465.0,37464.0,0.0505847]
[1643827056146,0.71202232,37465.0,37464.0,0.0505847]
[1643827056344,0.76202232,37465.0,37464.0,0.0505847]
[1643827056748,0.76202232,37465.0,37463.0,0.09554461]
[1643827056946,0.1098,37465.0,37464.0,0.08413449]
[1643827057148,0.73146448,37465.0,37463.0,0.09608558]
[1643827057345,0.61315586,37464.0,37463.0,0.09608558]
[1643827057546,0.67295586,37464.0,37463.0,0.09608558]
[1643827057948,0.413757,37464.0,37463.0,0.09554461]
[1643827058350,0.413757,37464.0,37462.0,0.00054098]
[1643827058550,0.353957,37463.0,37462.0,0.00054098]
[1643827058799,0.413757,37463.0,37462.0,0.00054098]
[1643827059199,0.413757,37463.0,37461.0,0.05]
[1643827059402,0.0598,37463.0,37461.0,0.050541]
[1643827060301,0.0598,37463.0,37462.0,0.04554461]
[1643827060501,0.413757,37463.0,37462.0,0.04554461]
[1643827060708,0.413757,37463.0,37461.0,0.05]
[1643827060904,0.0598,37463.0,37462.0,0.04554461]
[1643827061102,0.413757,37463.0,37462.0,0.04554461]
[1643827061304,0.413757,37463.0,37461.0,0.13984568]
[1643827061502,0.0598,37463.0,37461.0,0.13984568]
[1643827061704,0.25863114,37462.0,37461.0,0.05056076]
[1643827061904,0.31843114,37462.0,37461.0,0.05056076]
[1643827062105,0.0598,37462.0,37461.0,0.54610537]
[1643827062333,0.0598,37462.0,37461.0,0.45056076]
[1643827062843,0.0598,37462.0,37461.0,0.45]
[1643827063044,0.0598,37462.0,37461.0,0.54554461]
[1643827063448,0.0598,37462.0,37461.0,0.49554461]
[1643827064472,0.0598,37462.0,37461.0,0.58592285]
[1643827064965,0.00017458,37462.0,37461.0,0.73592285]
[1643827065150,0.00017458,37462.0,37461.0,1.68592285]
[1643827065753,0.00017458,37462.0,37461.0,1.58592285]
[1643827066590,0.00017458,37462.0,37461.0,0.63592285]
[1643827066989,0.00017458,37462.0,37461.0,1.48592285]
[1643827070464,0.05017458,37465.0,37463.0,0.21439658]
[1643827070663,0.05017458,37465.0,37464.0,0.09554461]
[1643827070963,0.00017458,37465.0,37464.0,0.09554461]
[1643827071167,0.03984413,37465.0,37464.0,0.09554461]
[1643827072364,0.03984413,37465.0,37464.0,0.09544557]
[1643827072767,0.30769341,37465.0,37464.0,0.09544557]
[1643827073164,0.66165041,37465.0,37464.0,0.09544557]
[1643827073567,0.39380113,37465.0,37464.0,0.09544557]
[1643827075497,0.39380113,37465.0,37464.0,0.67414939]
[1643827075697,0.03984413,37465.0,37464.0,0.67414939]
[1643827075915,0.00017458,37465.0,37464.0,0.67414939]
[1643827078041,0.00017458,37465.0,37464.0,0.97414939]
[1643827080045,0.05017405,37467.0,37464.0,0.67414939]
[1643827080242,0.05017405,37467.0,37464.0,0.37414939]
[1643827081292,0.05017405,37467.0,37464.0,0.37469317]
[1643827081991,0.05017405,37467.0,37464.0,0.37414939]
[1643827082194,0.05017405,37467.0,37464.0,0.37463828]
[1643827083292,0.05017405,37467.0,37464.0,0.37414939]
[1643827083492,0.05017405,37467.0,37464.0,0.37463828]
[1643827084398,0.05017405,37467.0,37464.0,0.37414939]
[1643827084596,0.05017405,37467.0,37464.0,0.37463828]
[1643827085644,0.05017405,37467.0,37464.0,0.37414939]
[1643827085844,0.05017405,37467.0,37464.0,0.37469433]
[1643827086845,0.05017405,37467.0,37464.0,0.37414939]
[1643827087161,0.05017405,37467.0,37464.0,0.37469433]
[1643827088147,0.05017405,37467.0,37464.0,0.37414939]
[1643827088368,0.05017405,37467.0,37464.0,0.37469433]
[1643827088547,0.35525522,37466.0,37464.0,0.09599051]
[1643827088793,0.353957,37465.0,37464.0,0.54599051]
[1643827088990,0.00129822,37466.0,37464.0,0.54599051]
[1643827089191,0.00129822,37466.0,37464.0,0.54544557]
[1643827089600,0.00129822,37466.0,37465.0,0.21228449]
[1643827090192,0.00147209,37466.0,37465.0,0.21228449]
[1643827090791,0.00147209,37466.0,37465.0,0.81228449]
[1643827093641,0.00147209,37466.0,37465.0,0.6]
[1643827093845,0.00147209,37466.0,37464.0,0.09603027]
[1643827094043,0.353957,37465.0,37464.0,0.09544557]
[1643827094244,0.353957,37465.0,37464.0,0.09603027]
[1643827095345,0.353957,37465.0,37464.0,0.09544557]
[1643827095545,0.353957,37465.0,37464.0,0.09538076]
[1643827099297,0.46231465,37465.0,37464.0,0.09538076]
[1643827099501,0.80180745,37465.0,37463.0,0.02870015]
[1643827099701,0.92781202,37464.0,37463.0,0.02870015]
[1643827099903,0.81549115,37464.0,37463.0,0.02870015]
[1643827100169,1.79571738,37464.0,37463.0,0.02811544]
[1643827100359,2.07687872,37464.0,37463.0,0.02811544]
[1643827100561,2.2860981,37464.0,37463.0,0.02811544]
[1643827100955,2.2860981,37464.0,37462.0,0.00054028]
[1643827100956,2.3360981,37464.0,37462.0,0.00054028]
[1643827101158,2.40155516,37463.0,37462.0,0.00054028]
[1643827101357,2.6425165,37463.0,37461.0,0.02188456]
[1643827101555,2.05155516,37462.0,37461.0,0.02188456]
[1643827101763,2.26135516,37462.0,37459.0,0.02811544]
[1643827101964,1.49780669,37461.0,37459.0,0.02811544]
[1643827102158,1.04517159,37460.0,37459.0,0.02811544]
[1643827102356,1.09517159,37460.0,37459.0,0.02811544]
[1643827102756,0.74517159,37460.0,37458.0,0.00054034]
[1643827102959,0.62485827,37459.0,37458.0,0.00054034]
[1643827103355,0.68465827,37459.0,37458.0,0.00054034]
[1643827103558,0.68394713,37459.0,37458.0,0.00054034]
[1643827103799,0.413757,37459.0,37457.0,0.07747499]
[1643827103996,0.353957,37458.0,37457.0,0.29313503]
[1643827104196,0.0598,37458.0,37457.0,0.29313503]
[1643827104596,0.0598,37458.0,37457.0,0.69313503]
[1643827104797,0.0598,37458.0,37457.0,0.29313503]
[1643827104997,0.0598,37458.0,37457.0,2.05495051]
[1643827105398,0.0598,37458.0,37457.0,0.29255022]
[1643827105598,0.0598,37458.0,37457.0,0.64255022]
[1643827105997,0.0598,37458.0,37457.0,0.07747499]
[1643827106597,0.0598,37458.0,37457.0,0.52747499]
[1643827106997,0.0598,37458.0,37457.0,0.35467173]
[1643827107400,0.0598,37458.0,37457.0,0.07747499]
[1643827108545,0.0598,37458.0,37457.0,0.87747499]
[1643827109155,0.0598,37458.0,37457.0,1.13650486]
[1643827110548,0.05996886,37458.0,37457.0,1.13650486]
[1643827110955,0.00016351,37460.0,37458.0,1.6]
[1643827110956,1.124e-05,37460.0,37458.0,1.6]
[1643827112495,1.124e-05,37460.0,37458.0,1.666743]
[1643827115150,1.124e-05,37460.0,37458.0,1.6]
[1643827115356,0.00019831,37459.0,37458.0,1.6]
[1643827120409,0.00019831,37459.0,37457.0,0.33708967]
[1643827120613,0.05019831,37461.0,37457.0,0.07747499]
[1643827120811,0.05019831,37461.0,37457.0,0.0780598]
[1643827121814,0.60442827,37460.0,37457.0,0.07747499]
[1643827122015,0.25624345,37460.0,37457.0,0.07747499]
[1643827122216,0.25624345,37460.0,37457.0,0.00053933]
[1643827122217,0.35387555,37459.0,37457.0,0.00053933]
[1643827122417,0.35160291,37458.0,37456.0,0.02783105]
[1643827122651,0.64702615,37457.0,37456.0,0.02783105]
[1643827122953,0.70682615,37457.0,37454.0,0.39916895]
[1643827123152,0.354059,37456.0,37454.0,0.02216895]
[1643827123349,0.413859,37456.0,37454.0,0.02216895]
[1643827123651,0.61257848,37455.0,37454.0,0.02216895]
[1643827123850,0.354059,37455.0,37453.0,0.02783105]
[1643827124052,0.354059,37455.0,37454.0,0.08727256]
[1643827125951,0.0598,37456.0,37454.0,0.08727256]
[1643827127301,0.28306055,37458.0,37454.0,0.08727256]
[1643827127302,0.00019844,37458.0,37454.0,0.08727256]
[1643827127500,0.00019844,37458.0,37455.0,0.354059]
[1643827127700,0.00019844,37458.0,37454.0,0.08727256]